fUST/lending_fUST_20250225
["ID","MTS","AMOUNT","RATE_DAILY","PERIOD"]
[354435203,1740492657066,-500.0,0.00046849,30]
[354435204,1740492657075,-500.0,0.00046849,120]
[354435205,1740492657085,-1097.464256,0.00046849,120]
[354435206,1740492657094,-500.0,0.00046849,120]
[354435207,1740492657106,-981.76,0.00046849,120]
[354435208,1740492657122,-500.0,0.00046849,120]
[354435209,1740492657132,-505.22451817,0.00046849,120]
[354435210,1740492657141,-506.1836146,0.00046849,120]
[354435211,1740492657151,-1281.89,0.00046849,120]
[354435212,1740492657161,-500.0,0.00046849,120]
[354435213,1740492657172,-500.0,0.00046849,120]
[354435214,1740492657181,-4062.68,0.00046849,120]
[354435215,1740492657191,-808.49,0.00046849,120]
[354435216,1740492657201,-500.0,0.00046849,120]
[354435217,1740492657211,-18507.46,0.00046849,120]
[354435218,1740492657221,-500.0,0.00046849,120]
[354435219,1740492657231,-500.0,0.00046849,120]
[354435220,1740492657241,-1209.85,0.00046849,120]
[354435221,1740492657250,-512.93324986,0.00046849,120]
[354435222,1740492657261,-500.0,0.00046849,120]
[354435223,1740492657270,-501.60672053,0.00046849,120]
[354435224,1740492657280,-500.0,0.00046849,120]
[354435225,1740492657290,-9854.06,0.00046849,3]
[354435226,1740492657299,-227498.99,0.00046849,7]
[354435227,1740492657309,-502.09379907,0.00046849,120]
[354435228,1740492657319,-1763.59,0.00046849,120]
[354435229,1740492657329,-500.0,0.00046849,120]
[354435230,1740492657339,-433.8414199,0.00046849,120]
[354435231,1740492657350,-500.0,0.00046849,120]
[354435232,1740492657360,-1190.04,0.00046849,120]
[354435233,1740492657370,-500.0,0.00046849,120]
[354435234,1740492657380,-3003.37,0.00046849,120]
[354435235,1740492657390,-7285.96,0.00046849,120]
[354435236,1740492657399,-500.0,0.00046849,120]
[354435237,1740492657409,-500.0,0.00046849,120]
[354435238,1740492657418,-500.0,0.00046849,120]
[354435239,1740492657428,-500.0,0.00046849,120]
[354435240,1740492657437,-18412.03,0.00046849,120]
[354435241,1740492657447,-1737.91,0.00046849,120]
[354435242,1740492657456,-158.592114,0.00046849,120]
[354435243,1740492657466,-500.0,0.00046849,120]
[354435244,1740492657475,-500.0,0.00046849,120]
[354435245,1740492657485,-500.0,0.00046849,120]
[354435246,1740492657495,-2956.183129,0.00046849,120]
[354435247,1740492657505,-559.91103563,0.00046849,120]
[354435248,1740492657514,-1124.56,0.00046849,120]
[354435249,1740492657524,-2956.183129,0.00046849,120]
[354435250,1740492657534,-982.13,0.00046849,120]
[354435251,1740492657543,-500.0,0.00046849,120]
[354435252,1740492657552,-500.0,0.00046849,120]
[354435253,1740492657562,-500.0,0.00046849,120]
[354435254,1740492657572,-158.592114,0.00046849,120]
[354435255,1740492657583,-500.0,0.00046849,120]
[354435256,1740492657592,-2956.183129,0.00046849,120]
[354435257,1740492657603,-2956.183129,0.00046849,120]
[354435258,1740492657612,-500.0,0.00046849,120]
[354435259,1740492657623,-2276.03,0.00046849,120]
[354435260,1740492657633,-500.0,0.00046849,120]
[354435261,1740492657643,-503.65210918,0.00046849,120]
[354435262,1740492657654,-500.0,0.00046849,120]
[354435263,1740492657664,-500.0,0.00046849,120]
[354435264,1740492657674,-500.0,0.00046849,120]
[354435265,1740492657685,-4582.82,0.00046849,120]
[354435266,1740492657695,-558.98190769,0.00046849,120]
[354435267,1740492657705,-500.0,0.00046849,120]
[354435268,1740492657714,-500.0,0.00046849,120]
[354435269,1740492657724,-500.0,0.00046849,120]
[354435270,1740492657733,-1818.45,0.00046849,120]
[354435271,1740492657743,-522.1581037,0.00046849,120]
[354435272,1740492657753,-616.57,0.00046849,120]
[354435273,1740492657762,-504.59382959,0.00046849,120]
[354435274,1740492657772,-1219.84,0.00046849,120]
[354435275,1740492657781,-500.0,0.00046849,120]
[354435276,1740492657790,-18480.01,0.00046849,120]
[354435277,1740492657800,-500.0,0.00046849,120]
[354435278,1740492657809,-883.27,0.00046849,120]
[354435279,1740492657818,-500.0,0.00046849,120]
[354435280,1740492657828,-500.0,0.00046849,120]
[354435281,1740492657837,-795.52,0.00046849,120]
[354435282,1740492657847,-500.0,0.00046849,120]
[354435283,1740492657856,-500.0,0.00046849,120]
[354435284,1740492657866,-235.14166936,0.00046849,120]
[354435285,1740492657876,-1637.96,0.00046849,120]
[354435286,1740492657885,-500.0,0.00046849,120]
[354435287,1740492657895,-500.0,0.00046849,120]
[354435288,1740492657904,-500.0,0.00046849,120]
[354435289,1740492657914,-500.0,0.00046849,120]
[354435290,1740492657924,-500.0,0.00046849,120]
[354435291,1740492657933,-500.0,0.00046849,120]
[354435292,1740492657943,-500.0,0.00046849,120]
[354435293,1740492657954,-228.57641041,0.00046849,120]
[354435294,1740492657964,-224.83609462,0.00046849,120]
[354435295,1740492657974,-500.02828448,0.00046849,2]
[354435296,1740492657983,-513.9105948,0.00046849,120]
[354435297,1740492657993,-1340.34,0.00046849,120]
[354435298,1740492658002,-500.0,0.00046849,120]
[354435299,1740492658011,-500.0,0.00046849,120]
[354435300,1740492658021,-3297.21,0.00046849,120]
[354435301,1740492658030,-655.06,0.00046849,120]
[354435302,1740492658040,-498.30640517,0.00046849,2]
[354435303,1740492658049,-1008.88,0.00046849,120]
[354435304,1740492658059,-300.83448013,0.00046849,120]
[354435305,1740492658068,-500.0,0.00046849,120]
[354435306,1740492658078,-664.144878,0.00046849,120]
[354435307,1740492658087,-500.0,0.00046849,120]
[354435308,1740492658097,-586.40624455,0.00046849,120]
[354435309,1740492658106,-151.0,0.00046849,120]
[354435310,1740492658275,-500.0,0.00046849,120]
[354435311,1740492658287,-500.0,0.00046849,120]
[354435312,1740492658298,-151.0,0.00046849,120]
[354435313,1740492658308,-500.0,0.00046849,120]
[354435314,1740492658318,-500.0,0.00046849,120]
[354435315,1740492658327,-500.0,0.00046849,21]
[354435316,1740492658337,-664.144878,0.00046849,120]
[354435317,1740492658346,-500.0,0.00046849,120]
[354435318,1740492658356,-602.97322327,0.00046849,120]
[354435319,1740492658366,-500.0,0.00046849,120]
[354435320,1740492658376,-500.0,0.00046849,120]
[354435321,1740492658386,-994.01,0.00046849,120]
[354435322,1740492658396,-500.0,0.00046849,120]
[354435323,1740492658406,-338.14490624,0.00046849,120]
[354435324,1740492658415,-500.0,0.00046849,120]
[354435325,1740492658425,-500.0,0.00046849,120]
[354435326,1740492658435,-5212.85,0.00046849,120]
[354435327,1740492658445,-1190.15,0.00046849,120]
[354435328,1740492658455,-575.70308805,0.00046849,120]
[354435329,1740492658464,-500.0,0.00046849,120]
[354435330,1740492658474,-500.0,0.00046849,120]
[354435331,1740492658484,-500.0,0.00046849,120]
[354435332,1740492658494,-500.0,0.00046849,120]
[354435333,1740492658504,-772.91,0.00046849,120]
[354435334,1740492658514,-500.0,0.00046873,10]
[354435335,1740492658523,-24149.49126897,0.0004688,5]
[354435336,1740492658533,-338852.27463075,0.0004688,5]
[354435337,1740492658543,-500.0,0.00046907,2]
[354435338,1740492658552,-500.0,0.00047007,2]
[354435339,1740492658562,-3633.01752152,0.00047038,10]
[354435340,1740492658572,-2000.0,0.0004704,120]
[354435341,1740492658582,-152.0,0.0004707,120]
[354435342,1740492658592,-152.0,0.0004708,120]
[354435343,1740492658602,-152.0,0.0004709,120]
[354435344,1740492658612,-4000.0,0.000471,120]
[354435345,1740492658622,-500.0,0.00047107,2]
[354435346,1740492658632,-250.0,0.00047121,10]
[354435347,1740492658643,-250.0,0.00047121,10]
[354435348,1740492658652,-500.0,0.00047123,120]
[354435349,1740492658662,-870.03,0.00047123,120]
[354435350,1740492658673,-504.05038792,0.00047123,120]
[354435351,1740492658683,-500.0,0.00047123,120]
[354435352,1740492658692,-500.0,0.00047123,120]
[354435353,1740492658702,-501.51349492,0.00047123,120]
[354435354,1740492658711,-500.0,0.00047123,120]
[354435355,1740492658721,-504.65832617,0.00047123,120]
[354435356,1740492658730,-500.0,0.00047123,120]
[354435357,1740492658740,-500.0,0.00047123,120]
[354435358,1740492658749,-516.69640788,0.00047123,120]
[354435359,1740492658759,-503.50596967,0.00047123,120]
[354435360,1740492658768,-504.95173037,0.00047123,120]
[354435361,1740492658778,-500.0,0.00047123,30]
[354435362,1740492658787,-500.0,0.00047123,120]
[354435363,1740492658797,-500.0,0.00047123,120]
[354435364,1740492658806,-500.0,0.00047123,120]
[354435365,1740492658816,-500.0,0.00047123,120]
[354435366,1740492658825,-500.0,0.00047123,120]
[354435367,1740492658835,-500.0,0.00047123,120]
[354435368,1740492658844,-500.0,0.00047123,120]
[354435369,1740492658855,-500.0,0.00047123,120]
[354435370,1740492658864,-500.0,0.00047123,120]
[354435371,1740492658873,-500.0,0.00047123,120]
[354435372,1740492658883,-505.17121002,0.00047123,120]
[354435373,1740492658892,-500.0,0.00047123,120]
[354435374,1740492658901,-618.09,0.00047123,120]
[354435375,1740492658911,-500.0,0.00047123,120]
[354435376,1740492658920,-504.69224809,0.00047123,120]
[354435377,1740492658930,-500.0,0.00047123,120]
[354435378,1740492658939,-500.0,0.00047123,120]
[354435379,1740492658948,-500.0,0.00047123,2]
[354435380,1740492658958,-499.22048648,0.00047123,120]
[354435381,1740492658967,-500.0,0.00047123,120]
[354435382,1740492658977,-500.0,0.00047123,120]
[354435383,1740492658986,-500.0,0.00047123,120]
[354435384,1740492658996,-500.0,0.00047123,120]
[354435385,1740492659005,-500.0,0.00047123,120]
[354435386,1740492659015,-500.0,0.00047123,120]
[354435387,1740492659024,-1396.8,0.00047123,120]
[354435388,1740492659034,-500.0,0.00047123,120]
[354435389,1740492659044,-1002.83,0.00047123,120]
[354435390,1740492659053,-500.0,0.00047123,120]
[354435391,1740492659063,-500.0,0.00047123,120]
[354435392,1740492659073,-164.08357839,0.00047123,120]
[354435393,1740492659082,-698.25,0.00047123,120]
[354435394,1740492659092,-500.0,0.00047123,120]
[354435395,1740492659103,-500.0,0.00047123,120]
[354435396,1740492659113,-1000.0,0.00047123,2]
[354435397,1740492659126,-500.0,0.00047123,120]
[354435398,1740492659135,-500.0,0.00047123,120]
[354435399,1740492659145,-500.0,0.00047123,120]
[354435400,1740492659155,-571.97,0.00047123,120]
[354435401,1740492659165,-500.0,0.00047123,120]
[354435402,1740492659174,-500.0,0.00047123,120]
[354435403,1740492659183,-743.75,0.00047123,120]
[354435404,1740492659194,-500.0,0.00047123,120]
[354435405,1740492659204,-1285.9,0.00047123,120]
[354435406,1740492659214,-500.0,0.00047123,120]
[354435407,1740492659224,-561.05652822,0.00047123,120]
[354435408,1740492659233,-500.0,0.00047123,120]
[354435409,1740492659243,-500.0,0.00047123,120]
[354435410,1740492659253,-503.81303023,0.00047123,120]
[354435411,1740492659264,-944.17,0.00047123,120]
[354435412,1740492659274,-500.0,0.00047123,120]
[354435413,1740492659284,-500.0,0.00047123,120]
[354435414,1740492659294,-1255.73,0.00047123,120]
[354435415,1740492659304,-500.0,0.00047123,120]
[354435416,1740492659313,-648.82566974,0.00047123,120]
[354435417,1740492659323,-1132.73,0.00047123,120]
[354435418,1740492659333,-500.0,0.00047123,120]
[354435419,1740492659343,-500.0,0.00047123,120]
[354435420,1740492659354,-500.0,0.00047123,120]
[354435421,1740492659364,-3208.18,0.00047123,120]
[354435422,1740492659373,-500.0,0.00047123,120]
[354435423,1740492659384,-500.0,0.00047123,120]
[354435424,1740492659394,-1358.51,0.00047123,120]
[354435425,1740492659404,-500.0,0.00047123,120]
[354435426,1740492659414,-500.0,0.00047123,120]
[354435427,1740492659423,-503.1299334,0.00047123,120]
[354435428,1740492659433,-500.0,0.00047123,120]
[354435429,1740492659443,-508.09169617,0.00047123,120]
[354435430,1740492659452,-500.0,0.00047123,120]
[354435431,1740492659462,-1065.66,0.00047123,20]
[354435432,1740492659472,-500.0,0.00047123,120]
[354435433,1740492659481,-500.0,0.00047123,120]
[354435434,1740492659491,-157.2498082,0.00047123,120]
[354435435,1740492659501,-509.5352674,0.00047123,120]
[354435436,1740492659511,-500.0,0.00047123,120]
[354435437,1740492659520,-544.17232376,0.00047123,120]
[354435438,1740492659530,-2599.63,0.00047123,120]
[354435439,1740492659539,-500.0,0.00047123,120]
[354435440,1740492659548,-500.0,0.00047123,120]
[354435441,1740492659558,-500.0,0.00047123,120]
[354435442,1740492659568,-500.0,0.00047123,120]
[354435443,1740492659578,-500.0,0.00047123,120]
[354435444,1740492659587,-500.0,0.00047123,120]
[354435445,1740492659597,-500.0,0.00047123,120]
[354435446,1740492659611,-500.0,0.00047123,120]
[354435447,1740492659626,-649.91968885,0.00047123,120]
[354435448,1740492659642,-500.0,0.00047123,120]
[354435449,1740492659656,-500.0,0.00047123,120]
[354435450,1740492659670,-500.0,0.00047123,120]
[354435451,1740492659684,-544.68,0.00047123,120]
[354435452,1740492659699,-500.0,0.00047123,120]
[354435453,1740492659715,-500.0,0.00047123,120]
[354435454,1740492659728,-563.7231173,0.00047123,120]
[354435455,1740492659744,-1292.19,0.00047123,120]
[354435456,1740492659759,-500.0,0.00047123,30]
[354435457,1740492659772,-454.93758564,0.00047123,120]
[354435458,1740492659786,-500.0,0.00047123,120]
[354435459,1740492659801,-500.0,0.00047123,120]
[354435460,1740492659816,-500.0,0.00047123,120]
[354435461,1740492659829,-500.0,0.00047123,120]
[354435462,1740492659843,-509.96132252,0.00047123,120]
[354435463,1740492659857,-907.87,0.00047123,120]
[354435464,1740492659870,-830.16,0.00047123,120]
[354435465,1740492659885,-500.0,0.00047123,120]
[354435466,1740492659900,-500.0,0.00047123,120]
[354435467,1740492659913,-500.0,0.00047123,120]
[354435468,1740492659929,-201.45576214,0.00047123,120]
[354435469,1740492659945,-508.95199333,0.00047123,120]
[354435470,1740492659961,-1548.25,0.00047123,120]
[354435471,1740492659972,-694.31,0.00047123,120]
[354435472,1740492659984,-500.0,0.00047123,120]
[354435473,1740492659998,-500.0,0.00047123,120]
[354435474,1740492660015,-500.0,0.00047123,120]
[354435475,1740492660031,-500.0,0.00047123,120]
[354435476,1740492660044,-500.0,0.00047123,120]
[354435477,1740492660057,-500.0,0.00047123,120]
[354435478,1740492660072,-151.236143,0.00047123,5]
[354435479,1740492660086,-583.71011696,0.00047123,120]
[354435480,1740492660099,-500.0,0.00047123,120]
[354435481,1740492660114,-1553.16,0.00047123,120]
[354435482,1740492660129,-500.0,0.00047123,120]
[354435483,1740492660142,-1143.38,0.00047123,120]
[354435484,1740492660155,-500.0,0.00047123,120]
[354435485,1740492660169,-500.0,0.00047123,120]
[354435486,1740492660183,-791.11,0.00047123,120]
[354435487,1740492660196,-898.96,0.00047123,120]
[354435488,1740492660209,-500.0,0.00047123,120]
[354435489,1740492660223,-500.0,0.00047123,120]
[354435490,1740492660236,-500.0,0.00047123,120]
[354435491,1740492660248,-1057.8,0.00047123,120]
[354435492,1740492660262,-946.75,0.00047123,120]
[354435493,1740492660274,-513.62681753,0.00047123,120]
[354435494,1740492660287,-500.0,0.00047123,120]
[354435495,1740492660299,-500.0,0.00047123,120]
[354435496,1740492660311,-994.31,0.00047123,120]
[354435497,1740492660323,-1234.72,0.00047123,120]
[354435498,1740492660334,-569.4,0.00047123,120]
[354435499,1740492660346,-632.1,0.00047123,120]
[354435500,1740492660359,-500.0,0.00047123,120]
[354435501,1740492660371,-500.0,0.00047123,120]
[354435502,1740492660383,-500.0,0.00047123,120]
[354435503,1740492660396,-2043.74,0.00047123,120]
[354435504,1740492660407,-500.0,0.00047123,120]
[354435505,1740492660419,-500.0,0.00047123,120]
[354435506,1740492660431,-1723.26,0.00047123,120]
[354435507,1740492660443,-500.0,0.00047123,120]
[354435508,1740492660455,-500.0,0.00047123,120]
[354435509,1740492660467,-500.0,0.00047123,120]
[354435510,1740492660479,-500.0,0.00047123,120]
[354435511,1740492660491,-500.0,0.00047123,120]
[354435512,1740492660503,-512.81176448,0.00047123,30]
[354435513,1740492660516,-712.8,0.00047123,120]
[354435514,1740492660527,-590.23,0.00047123,120]
[354435515,1740492660540,-999.3,0.00047123,120]
[354435516,1740492660552,-1308.89,0.00047123,120]
[354435517,1740492660563,-1041.62,0.00047123,120]
[354435518,1740492660575,-500.0,0.00047123,120]
[354435519,1740492660587,-518.8369307,0.00047123,120]
[354435520,1740492660599,-500.0,0.00047123,120]
[354435521,1740492660610,-2768.435971,0.00047123,3]
[354435522,1740492660621,-500.0,0.00047123,120]
[354435523,1740492660634,-1915.7,0.00047123,120]
[354435524,1740492660646,-2768.435971,0.00047123,3]
[354435525,1740492660657,-500.0,0.00047123,120]
[354435526,1740492660669,-500.0,0.00047123,120]
[354435527,1740492660681,-866.53,0.00047123,120]
[354435528,1740492660692,-818.49,0.00047123,120]
[354435529,1740492660704,-2860.45,0.00047123,120]
[354435530,1740492660716,-500.0,0.00047123,120]
[354435531,1740492660728,-783.36,0.00047123,120]
[354435532,1740492660740,-1662.35,0.00047123,120]
[354435533,1740492660752,-500.0,0.00047123,120]
[354435534,1740492660764,-503.47574561,0.00047123,120]
[354435535,1740492660778,-500.0,0.00047123,120]
[354435536,1740492660789,-500.0,0.00047123,120]
[354435537,1740492660801,-500.0,0.00047123,120]
[354435538,1740492660814,-500.0,0.00047123,120]
[354435539,1740492660826,-500.0,0.00047123,120]
[354435540,1740492660837,-510.46330453,0.00047123,120]
[354435541,1740492660849,-500.0,0.00047123,120]
[354435542,1740492660861,-500.0,0.00047123,120]
[354435543,1740492660872,-503.2523664,0.00047123,120]
[354435544,1740492660884,-500.0,0.00047123,120]
[354435545,1740492660896,-500.0,0.00047123,120]
[354435546,1740492660907,-500.0,0.00047123,120]
[354435547,1740492660920,-500.0,0.00047123,120]
[354435548,1740492660931,-500.0,0.00047123,120]
[354435549,1740492660945,-500.0,0.00047123,120]
[354435550,1740492660957,-210.40750591,0.00047123,120]
[354435551,1740492660968,-500.0,0.00047123,120]
[354435552,1740492660980,-7363.02,0.00047123,120]
[354435553,1740492660992,-500.0,0.00047123,120]
[354435554,1740492661003,-908.11,0.00047123,120]
[354435555,1740492661014,-500.0,0.00047123,120]
[354435556,1740492661026,-500.0,0.00047123,120]
[354435557,1740492661037,-500.0,0.00047123,120]
[354435558,1740492661050,-409.048072,0.00047123,120]
[354435559,1740492661062,-771.74,0.00047123,120]
[354435560,1740492661074,-329.45817815,0.00047123,120]
[354435561,1740492661086,-805.84,0.00047123,120]
[354435562,1740492661097,-409.048072,0.00047123,120]
[354435563,1740492661111,-2658.55,0.00047123,120]
[354435564,1740492661124,-500.0,0.00047123,120]
[354435565,1740492661136,-803.68,0.00047123,120]
[354435566,1740492661148,-500.0,0.00047123,120]
[354435567,1740492661160,-10326.06,0.00047123,120]
[354435568,1740492661173,-500.0,0.00047123,120]
[354435569,1740492661184,-444.54335897,0.00047123,120]
[354435570,1740492661196,-418.68924236,0.00047123,120]
[354435571,1740492661207,-500.0,0.00047123,120]
[354435572,1740492661220,-500.0,0.00047123,120]
[354435573,1740492661232,-151.0,0.00047123,120]
[354435574,1740492661244,-1560.19,0.00047123,120]
[354435575,1740492661256,-500.0,0.00047123,2]
[354435576,1740492661268,-500.0,0.00047123,120]
[354435577,1740492661279,-837.34,0.00047123,120]
[354435578,1740492661291,-1065.29,0.00047123,120]
[354435579,1740492661302,-500.0,0.00047123,120]
[354435580,1740492661314,-500.0,0.00047123,120]
[354435581,1740492661325,-500.0,0.00047123,120]
[354435582,1740492661641,-759.82,0.00047123,120]
[354435583,1740492661660,-500.0,0.00047123,120]
[354435584,1740492661670,-250.0,0.00047123,120]
[354435585,1740492661680,-500.0,0.00047123,120]
[354435586,1740492661690,-500.0,0.00047123,120]
[354435587,1740492661700,-763.6,0.00047123,45]
[354435588,1740492661710,-3354.45,0.00047123,120]
[354435589,1740492661721,-500.0,0.00047123,120]
[354435590,1740492661731,-683.16,0.00047123,120]
[354435591,1740492661741,-500.0,0.00047123,120]
[354435592,1740492661751,-600.0,0.00047123,120]
[354435593,1740492661761,-500.0,0.00047123,120]
[354435594,1740492661770,-500.0,0.00047123,120]
[354435595,1740492661780,-349.56416494,0.00047123,120]
[354435596,1740492661789,-1542.09,0.00047123,120]
[354435597,1740492661799,-3000.0,0.00047123,30]
[354435598,1740492661809,-622.19,0.00047123,120]
[354435599,1740492661819,-500.0,0.00047123,120]
[354435600,1740492661828,-500.0,0.00047123,120]
[354435601,1740492661838,-429.0355784,0.00047123,120]
[354435602,1740492661847,-500.0,0.00047123,120]
[354435603,1740492661861,-495.24151428,0.00047123,120]
[354435604,1740492661871,-572.56,0.00047123,120]
[354435605,1740492661880,-273.315442,0.00047123,120]
[354435606,1740492661890,-500.0,0.00047123,120]
[354435607,1740492661900,-500.0,0.00047123,120]
[354435608,1740492661909,-834.01,0.00047123,120]
[354435609,1740492661919,-29233.61,0.00047123,6]
[354435610,1740492661928,-273.315442,0.00047123,120]
[354435611,1740492661938,-500.0,0.00047123,120]
[354435612,1740492661947,-500.0,0.00047123,120]
[354435613,1740492661957,-500.0,0.00047123,120]
[354435614,1740492661966,-772.09,0.00047123,120]
[354435615,1740492661975,-1181.44,0.00047123,120]
[354435616,1740492661985,-1740.31,0.00047123,120]
[354435617,1740492661994,-8785.77,0.00047123,120]
[354435618,1740492662004,-759.63,0.00047123,120]
[354435619,1740492662014,-392.81007405,0.00047123,120]
[354435620,1740492662023,-625.3,0.00047123,120]
[354435621,1740492662033,-500.0,0.00047123,120]
[354435622,1740492662042,-1522.34,0.00047123,120]
[354435623,1740492662052,-500.0,0.00047123,120]
[354435624,1740492662062,-2526.78,0.00047123,120]
[354435625,1740492662071,-500.0,0.00047123,120]
[354435626,1740492662081,-500.0,0.00047123,120]
[354435627,1740492662090,-768.21,0.00047123,120]
[354435628,1740492662101,-17597.58,0.00047123,120]
[354435629,1740492662111,-4460.87,0.00047123,120]
[354435630,1740492662121,-500.0,0.00047123,120]
[354435631,1740492662132,-500.0,0.00047123,120]
[354435632,1740492662142,-4364.76,0.00047123,120]
[354435633,1740492662152,-500.0,0.00047123,120]
[354435634,1740492662162,-383.43284134,0.00047123,120]
[354435635,1740492662174,-500.0,0.00047123,120]
[354435636,1740492662184,-500.0,0.00047123,120]
[354435637,1740492662194,-500.0,0.00047123,120]
[354435638,1740492662205,-500.0,0.00047123,120]
[354435639,1740492662216,-500.0,0.00047123,120]
[354435640,1740492662226,-285.7,0.00047123,120]
[354435641,1740492662236,-500.0,0.00047123,120]
[354435642,1740492662246,-500.0,0.00047123,120]
[354435643,1740492662256,-998.55,0.00047123,120]
[354435644,1740492662265,-506.04088682,0.00047123,120]
[354435645,1740492662276,-1745.15,0.00047123,120]
[354435646,1740492662286,-285.7,0.00047123,120]
[354435647,1740492662295,-507.49635301,0.00047123,120]
[354435648,1740492662305,-500.0,0.00047123,120]
[354435649,1740492662315,-254.72905389,0.00047123,120]
[354435650,1740492662325,-3905.84,0.00047123,120]
[354435651,1740492662335,-500.0,0.00047123,120]
[354435652,1740492662345,-500.0,0.00047123,120]
[354435653,1740492662357,-188.838224,0.00047123,120]
[354435654,1740492662366,-500.0,0.00047123,120]
[354435655,1740492662376,-500.0,0.00047123,120]
[354435656,1740492662386,-504.67591603,0.00047123,120]
[354435657,1740492662396,-188.838224,0.00047123,120]
[354435658,1740492662406,-2781.37,0.00047123,120]
[354435659,1740492662415,-543.43857099,0.00047123,120]
[354435660,1740492662424,-500.0,0.00047123,120]
[354435661,1740492662434,-505.66283094,0.00047123,120]
[354435662,1740492662444,-500.0,0.00047123,120]
[354435663,1740492662453,-500.0,0.00047123,120]
[354435664,1740492662462,-662.1,0.00047123,120]
[354435665,1740492662472,-500.0,0.00047123,120]
[354435666,1740492662481,-506.95,0.00047123,120]
[354435667,1740492662491,-505.14960612,0.00047123,120]
[354435668,1740492662500,-500.0,0.00047123,120]
[354435669,1740492662509,-500.0,0.00047123,120]
[354435670,1740492662519,-500.0,0.00047123,120]
[354435671,1740492662529,-500.0,0.00047123,120]
[354435672,1740492662539,-2612.02,0.00047123,120]
[354435673,1740492662548,-500.0,0.00047123,120]
[354435674,1740492662558,-500.0,0.00047123,120]
[354435675,1740492662567,-1097.464256,0.00047123,120]
[354435676,1740492662577,-500.0,0.00047123,120]
[354435677,1740492662586,-2298.81,0.00047123,120]
[354435678,1740492662596,-204.88755174,0.00047123,120]
[354435679,1740492662608,-500.0,0.00047123,30]
[354435680,1740492662617,-1097.464256,0.00047123,120]
[354435681,1740492662627,-500.0,0.00047123,120]
[354435682,1740492662637,-981.76,0.00047123,120]
[354435683,1740492662646,-500.0,0.00047123,120]
[354435684,1740492662656,-1281.89,0.00047123,120]
[354435685,1740492662665,-500.0,0.00047123,120]
[354435686,1740492662675,-500.0,0.00047123,120]
[354435687,1740492662684,-4062.68,0.00047123,120]
[354435688,1740492662694,-808.49,0.00047123,120]
[354435689,1740492662704,-500.0,0.00047123,120]
[354435690,1740492662714,-18507.46,0.00047123,120]
[354435691,1740492662725,-221.76945821,0.00047123,120]
[354435692,1740492662735,-500.0,0.00047123,120]
[354435693,1740492662744,-1209.85,0.00047123,120]
[354435694,1740492662754,-500.0,0.00047123,120]
[354435695,1740492662763,-503.28745639,0.00047123,120]
[354435696,1740492662773,-9854.06,0.00047123,3]
[354435697,1740492662783,-56960.5995789,0.00047123,7]
[354435698,1740492663683,-170538.3904211,0.00047123,7]
[354435699,1740492663693,-1763.59,0.00047123,120]
[354435700,1740492663703,-500.0,0.00047123,120]
[354435701,1740492663713,-1190.04,0.00047123,120]
[354435702,1740492663723,-500.0,0.00047123,120]